[Event "15th Governor Cup 2019"]
[Site "Khanty-Mansiysk"]
[Date "2019.11.23"]
[Round "7.11"]
[White "Chekletsov, Ilya"]
[Black "Belyakov, Bogdan"]
[Result "0-1"]
[ECO "D20"]
[WhiteElo "2386"]
[BlackElo "2495"]
[Annotator "ChessBase"]
[PlyCount "116"]
[EventDate "2019.11.19"]
[EventType "swiss"]
[EventCountry "RUS"]
[SourceTitle "playchess.com"]
[Source "ChessBase"]
[SourceQuality "1"]
[TimeControl "5400+30"]

1. d4 {[%emt 0:00:00]} d5 {[%emt 0:00:00]} 2. c4 {[%emt 0:00:00]} dxc4 {[%emt 0:00:00]} 3. e4 {[%emt 0:00:00]} b5 {[%emt 0:00:12]} 4. a4 {[%emt 0:04:38]} Bb7 {[%emt 0:01:46]} 5. f3 {[%emt 0:04:04]} a6 {[%emt 0:02:07]} 6. axb5 {[%emt 0:00:56]} axb5 {[%emt 0:01:38]} 7. Rxa8 {[%emt 0:00:06]} Bxa8 {[%emt 0:00:04]} 8. b3 {[%emt 0:02:58]} e5 {[%emt 0:07:15]} 9. dxe5 {[%emt 0:04:43]} Qxd1+ {[%emt 0:02:19]} 10. Kxd1 {[%emt 0:00:07]} Nd7 {[%emt 0:02:52]} 11. bxc4 {[%emt 0:01:23]} b4 {[%emt 0:02:19]} 12. Bb2 {[%emt 0:01:06]} Ne7 {[%emt 0:01:00]} 13. h4 {[%emt 0:05:20]} Ng6 {[%emt 0:03:51]} 14. e6 {[%emt 0:00:42]} fxe6 {[%emt 0:00:08]} 15. h5 {[%emt 0:00:03]} Nge5 {[%emt 0:05:20]} 16. Nd2 {[%emt 0:04:28]} h6 {[%emt 0:11:17]} 17. Nh3 {[%emt 0:01:23]} Kf7 {[%emt 0:03:48]} 18. Be2 {[%emt 0:04:07]} Be7 {[%emt 0:05:33]} 19. Rf1 {[%emt 0:09:06]} Rd8 {[%emt 0:05:27]} 20. Kc2 {[%emt 0:15:22]} Nc6 {[%emt 0:03:27]} 21. Nb3 {[%emt 0:11:16]} Nc5 {[%emt 0:03:43]} 22. Ra1 {[%emt 0:03:28]} Bb7 {[%emt 0:10:26]} 23. Nxc5 {[%emt 0:00:57]} Bxc5 {[%emt 0:00:10]} 24. Nf4 {[%emt 0:00:06]} Nd4+ {[%emt 0:05:35]} 25. Bxd4 {[%emt 0:00:07]} Bxd4 {[%emt 0:00:10]} 26. Ra4 {[%emt 0:00:15]} c5 {[%emt 0:04:12]} 27. Ra7 {[%emt 0:02:19]} Rd7 {[%emt 0:01:10]} 28. Nd3 {[%emt 0:00:04]} e5 {[%emt 0:02:35]} 29. Bd1 {[%emt 0:02:47]} Ke7 {[%emt 0:03:11]} 30. Kd2 {[%emt 0:00:52]} Bc8 {[%emt 0:05:47]} 31. Ra5 {[%emt 0:05:14]} Rc7 {[%emt 0:01:12]} 32. Ke2 {[%emt 0:04:26]} Kf6 {[%emt 0:01:14]} 33. g4 {[%emt 0:00:05]} Kg5 {[%emt 0:01:40]} 34. Bb3 {[%emt 0:00:59]} Kh4 {[%emt 0:00:46]} 35. Ra8 {[%emt 0:01:41]} Kg3 {[%emt 0:00:16]} 36. Ne1 {[%emt 0:00:47]} Be6 {[%emt 0:02:21]} 37. Ra6 {[%emt 0:00:25]} Re7 {[%emt 0:00:49]} 38. Nc2 {[%emt 0:01:01]} Bf2 {[%emt 0:01:23]} 39. Rc6 {[%emt 0:05:01]} Bd7 {[%emt 0:00:52]} 40. Rd6 {[%emt 0:00:23]} Rf7 {[%emt 0:00:20]} 41. Rd3 {[%emt 0:01:04]} Kg2 {[%emt 0:00:46]} 42. Na1 {[%emt 0:01:57]} Bd4 {[%emt 0:01:15]} 43. Nc2 {[%emt 0:00:03]} Be6 {[%emt 0:00:19]} 44. Ne1+ {[%emt 0:01:33]} Kg3 {[%emt 0:00:05]} 45. Nc2 {[%emt 0:00:06]} Ra7 {[%emt 0:00:51]} 46. Rd1 {[%emt 0:03:28]} Kf4 {[%emt 0:00:10]} 47. Rd2 {[%emt 0:00:53]} Bf7 {[%emt 0:00:11]} 48. Rd1 {[%emt 0:00:14]} Be8 {[%emt 0:00:06]} 49. Rd2 {[%emt 0:00:05]} g6 {[%emt 0:01:30]} 50. hxg6 {[%emt 0:00:13]} Bxg6 {[%emt 0:00:04]} 51. Rd1 {[%emt 0:00:18]} h5 {[%emt 0:00:08]} 52. Rh1 {[%emt 0:00:30]} Rh7 {[%emt 0:00:47]} 53. gxh5 {[%emt 0:00:29]} Rxh5 {[%emt 0:00:54]} 54. Rf1 {[%emt 0:02:22]} Rh2+ {[%emt 0:00:17]} 55. Kd1 {[%emt 0:00:52]} Bc3 {[%emt 0:00:50]} 56. Ne1 {[%emt 0:00:24]} Bxe1 {[%emt 0:00:43]} 57. Kxe1 {[%emt 0:00:04]} Rb2 {[%emt 0:00:14]} 58. Bd1 {[%emt 0:00:03]} Bf7 {[%emt 0:00:22]} 0-1

[Event "15th Governor Cup 2019"]
[Site "Khanty-Mansiysk"]
[Date "2019.11.23"]
[Round "7.12"]
[White "Potapov, Pavel"]
[Black "Obgolts, Erik"]
[Result "1-0"]
[ECO "B06"]
[WhiteElo "2489"]
[BlackElo "2371"]
[Annotator "ChessBase"]
[PlyCount "81"]
[EventDate "2019.11.19"]
[EventType "swiss"]
[EventCountry "RUS"]
[SourceTitle "playchess.com"]
[Source "ChessBase"]
[SourceQuality "1"]
[TimeControl "5400+30"]

1. e4 {[%emt 0:00:00]} g6 {[%emt 0:00:00]} 2. d4 {[%emt 0:00:01]} Bg7 {[%emt 0:00:00]} 3. Nc3 {[%emt 0:00:09]} c6 {[%emt 0:00:00]} 4. f4 {[%emt 0:02:31]} d5 {[%emt 0:00:00]} 5. e5 {[%emt 0:00:21]} Nh6 {[%emt 0:00:00]} 6. Nf3 {[%emt 0:01:11]} f6 {[%emt 0:00:17]} 7. Be3 {[%emt 0:02:59]} O-O {[%emt 0:00:07]} 8. Qd2 {[%emt 0:01:02]} Bg4 {[%emt 0:00:05]} 9. Be2 {[%emt 0:01:25]} Nd7 {[%emt 0:00:04]} 10. O-O-O {[%emt 0:08:11]} Nf5 {[%emt 0:00:06]} 11. Kb1 {[%emt 0:11:46]} Nxe3 {[%emt 0:00:06]} 12. Qxe3 {[%emt 0:00:07]} e6 {[%emt 0:00:05]} 13. Rhe1 {[%emt 0:15:10]} Bxf3 {[%emt 0:21:18]} 14. Bxf3 {[%emt 0:00:19]} fxe5 {[%emt 0:03:00]} 15. dxe5 {[%emt 0:02:28]} Qe7 {[%emt 0:13:47]} 16. g3 {[%emt 0:02:14]} Nb6 {[%emt 0:01:46]} 17. Be2 {[%emt 0:01:52]} g5 {[%emt 0:05:20]} 18. Bd3 {[%emt 0:06:00]} c5 {[%emt 0:13:18]} 19. Nb5 {[%emt 0:02:25]} c4 {[%emt 0:01:49]} 20. Be2 {[%emt 0:01:19]} gxf4 {[%emt 0:00:42]} 21. gxf4 {[%emt 0:00:12]} Qb4 {[%emt 0:00:42]} 22. Nc3 {[%emt 0:00:52]} Qe7 {[%emt 0:08:11]} 23. Rg1 {[%emt 0:03:44]} Kh8 {[%emt 0:00:43]} 24. Rg4 {[%emt 0:03:19]} Bh6 {[%emt 0:05:57]} 25. Rf1 {[%emt 0:03:19]} d4 {[%emt 0:10:31]} 26. Qxd4 {[%emt 0:00:17]} Rad8 {[%emt 0:00:02]} 27. Qe3 {[%emt 0:01:03]} Nd5 {[%emt 0:01:08]} 28. Nxd5 {[%emt 0:00:41]} Rxd5 {[%emt 0:00:20]} 29. Qh3 {[%emt 0:11:06]} Rd2 {[%emt 0:01:22]} 30. Qxh6 {[%emt 0:00:58]} Rxe2 {[%emt 0:00:09]} 31. Rfg1 {[%emt 0:00:37]} Rd2 {[%emt 0:01:49]} 32. Rg7 {[%emt 0:03:31]} Rd1+ {[%emt 0:00:05]} 33. Rxd1 {[%emt 0:00:03]} Qxg7 {[%emt 0:00:04]} 34. Qxe6 {[%emt 0:00:19]} Rxf4 {[%emt 0:00:11]} 35. Rd8+ {[%emt 0:03:29]} Rf8 {[%emt 0:00:07]} 36. Rxf8+ {[%emt 0:00:19]} Qxf8 {[%emt 0:00:04]} 37. Qxc4 {[%emt 0:00:19]} Qf3 {[%emt 0:01:47]} 38. a3 {[%emt 0:03:14]} Qh1+ {[%emt 0:00:39]} 39. Ka2 {[%emt 0:00:04]} Qxh2 {[%emt 0:00:05]} 40. e6 {[%emt 0:04:24]} Kg7 {[%emt 0:02:22]} 41. Qd4+ {[%emt 0:00:18]} 1-0

[Event "15th Governor Cup 2019"]
[Site "Khanty-Mansiysk"]
[Date "2019.11.23"]
[Round "7.13"]
[White "Zakaryan, David"]
[Black "Nesterov, Arseniy"]
[Result "1/2-1/2"]
[ECO "A06"]
[WhiteElo "2338"]
[BlackElo "2489"]
[Annotator "ChessBase"]
[PlyCount "118"]
[EventDate "2019.11.19"]
[EventType "swiss"]
[EventCountry "RUS"]
[SourceTitle "playchess.com"]
[Source "ChessBase"]
[SourceQuality "1"]
[TimeControl "5400+30"]

1. Nf3 {[%emt 0:00:00]} d5 {[%emt 0:01:45]} 2. g3 {[%emt 0:00:32]} Nf6 {[%emt 0:02:09]} 3. Bg2 {[%emt 0:00:07]} Bf5 {[%emt 0:00:05]} 4. O-O {[%emt 0:00:08]} e6 {[%emt 0:00:06]} 5. c4 {[%emt 0:01:04]} c6 {[%emt 0:00:17]} 6. cxd5 {[%emt 0:00:38]} cxd5 {[%emt 0:01:00]} 7. Qb3 {[%emt 0:00:15]} Qb6 {[%emt 0:00:50]} 8. Nc3 {[%emt 0:00:10]} Nc6 {[%emt 0:02:20]} 9. Qxb6 {[%emt 0:01:06]} axb6 {[%emt 0:00:02]} 10. d3 {[%emt 0:00:08]} Bc5 {[%emt 0:03:46]} 11. Bg5 {[%emt 0:00:17]} h6 {[%emt 0:06:22]} 12. Bxf6 {[%emt 0:00:14]} gxf6 {[%emt 0:00:02]} 13. e4 {[%emt 0:02:15]} dxe4 {[%emt 0:00:11]} 14. dxe4 {[%emt 0:00:13]} Bh7 {[%emt 0:03:56]} 15. Rfd1 {[%emt 0:01:47]} Ke7 {[%emt 0:03:06]} 16. Rd2 {[%emt 0:00:03]} Rhd8 {[%emt 0:00:42]} 17. Rad1 {[%emt 0:00:07]} Rxd2 {[%emt 0:00:54]} 18. Rxd2 {[%emt 0:00:02]} b5 {[%emt 0:10:05]} 19. a3 {[%emt 0:01:29]} b4 {[%emt 0:00:20]} 20. axb4 {[%emt 0:00:04]} Bxb4 {[%emt 0:00:10]} 21. Ne1 {[%emt 0:01:08]} Ne5 {[%emt 0:04:33]} 22. Kf1 {[%emt 0:03:52]} Rc8 {[%emt 0:18:45]} 23. Rc2 {[%emt 0:00:38]} Rd8 {[%emt 0:01:22]} 24. Ke2 {[%emt 0:00:54]} f5 {[%emt 0:02:55]} 25. exf5 {[%emt 0:02:50]} Bxf5 {[%emt 0:00:10]} 26. Rd2 {[%emt 0:00:40]} Bg4+ {[%emt 0:09:38]} 27. f3 {[%emt 0:00:50]} Rxd2+ {[%emt 0:00:06]} 28. Kxd2 {[%emt 0:00:13]} Bf5 {[%emt 0:00:05]} 29. f4 {[%emt 0:00:31]} Nc4+ {[%emt 0:00:09]} 30. Kc1 {[%emt 0:00:04]} b6 {[%emt 0:03:07]} 31. Bf3 {[%emt 0:02:36]} Bc5 {[%emt 0:00:26]} 32. Ng2 {[%emt 0:02:02]} Bd4 {[%emt 0:04:21]} 33. Be2 {[%emt 0:02:14]} Ne3 {[%emt 0:02:11]} 34. Nh4 {[%emt 0:01:00]} Bh7 {[%emt 0:02:42]} 35. Kd2 {[%emt 0:01:06]} Nf5 {[%emt 0:00:16]} 36. Nxf5+ {[%emt 0:00:19]} Bxf5 {[%emt 0:00:01]} 37. g4 {[%emt 0:00:08]} Bg6 {[%emt 0:01:58]} 38. Bd3 {[%emt 0:01:33]} f5 {[%emt 0:01:19]} 39. b4 {[%emt 0:03:03]} Bg1 {[%emt 0:01:53]} 40. h3 {[%emt 0:00:05]} Kf6 {[%emt 0:01:04]} 41. Ne2 {[%emt 0:04:52]} Bf2 {[%emt 0:00:37]} 42. Nc3 {[%emt 0:00:19]} Bg3 {[%emt 0:03:26]} 43. Ne2 {[%emt 0:00:52]} Bf2 {[%emt 0:00:03]} 44. Nc3 {[%emt 0:00:04]} Bf7 {[%emt 0:00:31]} 45. Bc4 {[%emt 0:02:29]} Be8 {[%emt 0:00:21]} 46. Bb5 {[%emt 0:02:07]} Bxb5 {[%emt 0:01:19]} 47. Nxb5 {[%emt 0:00:01]} Bg3 {[%emt 0:00:07]} 48. Ke3 {[%emt 0:00:16]} fxg4 {[%emt 0:00:09]} 49. hxg4 {[%emt 0:00:12]} Be1 {[%emt 0:00:03]} 50. Nd4 {[%emt 0:01:14]} Bxb4 {[%emt 0:00:22]} 51. g5+ {[%emt 0:00:02]} hxg5 {[%emt 0:02:07]} 52. fxg5+ {[%emt 0:00:01]} Kxg5 {[%emt 0:00:49]} 53. Nxe6+ {[%emt 0:00:03]} Kf6 {[%emt 0:00:20]} 54. Nc7 {[%emt 0:00:08]} Ke5 {[%emt 0:00:16]} 55. Na8 {[%emt 0:00:43]} b5 {[%emt 0:00:10]} 56. Nc7 {[%emt 0:00:05]} Bc5+ {[%emt 0:00:03]} 57. Kd3 {[%emt 0:00:03]} b4 {[%emt 0:00:05]} 58. Na6 {[%emt 0:00:04]} Bd6 {[%emt 0:00:12]} 59. Nxb4 {[%emt 0:00:03]} Bxb4 {[%emt 0:00:03] Ke4+} 1/2-1/2

[Event "15th Governor Cup 2019"]
[Site "Khanty-Mansiysk"]
[Date "2019.11.23"]
[Round "7.14"]
[White "Maltsevskaya, Aleksandra"]
[Black "Najdin, Danil"]
[Result "0-1"]
[ECO "D30"]
[WhiteElo "2332"]
[BlackElo "2357"]
[Annotator "NA"]
[PlyCount "66"]
[EventDate "2019.11.19"]
[EventType "swiss"]
[EventCountry "RUS"]
[SourceTitle "playchess.com"]
[Source "ChessBase"]
[SourceQuality "1"]
[TimeControl "5400+30"]

1. d4 {[%emt 0:00:00]} d5 {[%emt 0:01:15]} 2. c4 {[%emt 0:00:00]} e6 {[%emt 0:00:16]} 3. Nf3 {[%emt 0:00:00]} c6 {[%emt 0:00:17]} 4. Qb3 {[%emt 0:01:36]} Nd7 {[%emt 0:07:38]} 5. g3 {[%emt 0:00:24]} Bd6 {[%emt 0:00:52]} 6. Bg2 {[%emt 0:00:27]} f5 {[%emt 0:01:15]} 7. Nc3 {[%emt 0:08:01]} Nh6 {[%emt 0:02:15]} 8. Ng5 {[%emt 0:06:07]} Nf6 {[%emt 0:04:36]} 9. O-O {[%emt 0:05:12]} O-O {[%emt 0:01:43]} 10. f3 {[%emt 0:13:30]} f4 {[%emt 0:06:56]} 11. gxf4 {[%emt 0:06:19]} Nf5 {[%emt 0:03:33]} 12. e3 {[%emt 0:04:48]} Nh5 {[%emt 0:05:45]} 13. cxd5 {[%emt 0:10:24]} cxd5 {[%emt 0:01:00]} 14. Bd2 {[%emt 0:04:09]} Kh8 {[%emt 0:10:26]} 15. Nb5 {[%emt 0:06:21]} Be7 {[%emt 0:06:24]} 16. Nh3 {[%emt 0:01:43]} a6 {[%emt 0:03:18]} 17. Nc3 {[%emt 0:00:10]} Bd6 {[%emt 0:01:15]} 18. Rad1 {[%emt 0:09:11]} b5 {[%emt 0:02:15]} 19. Ne2 {[%emt 0:04:18]} a5 {[%emt 0:09:37]} 20. e4 {[%emt 0:10:44]} Nh4 {[%emt 0:00:58]} 21. e5 {[%emt 0:02:39]} Be7 {[%emt 0:02:01]} 22. Ng3 {[%emt 0:00:09]} Qe8 {[%emt 0:02:54]} 23. Qe3 {[%emt 0:02:56]} b4 {[%emt 0:04:30]} 24. Qf2 {[%emt 0:00:30]} Ba6 {[%emt 0:01:18]} 25. Rfe1 {[%emt 0:00:04]} Qg6 {[%emt 0:01:34]} 26. Kh1 {[%emt 0:01:52]} Rac8 {[%emt 0:00:46]} 27. Rc1 {[%emt 0:00:10]} Nf5 {[%emt 0:09:38]} 28. Nxf5 {[%emt 0:01:19]} Qxf5 {[%emt 0:00:02]} 29. Bf1 {[%emt 0:00:52]} Bxf1 {[%emt 0:02:18]} 30. Qxf1 {[%emt 0:00:03]} Rc2 {[%emt 0:00:30]} 31. Qg2 {[%emt 0:00:59]} Rxd2 {[%emt 0:01:08]} 32. Qxd2 {[%emt 0:00:04]} Qxh3 {[%emt 0:00:05]} 33. Rc7 {[%emt 0:00:56]} Nxf4 {[%emt 0:00:34]} 0-1

[Event "15th Governor Cup 2019"]
[Site "Khanty-Mansiysk"]
[Date "2019.11.23"]
[Round "7.15"]
[White "Mochalin, Faddey"]
[Black "Chinguun, Sumiya"]
[Result "1-0"]
[ECO "E91"]
[WhiteElo "2188"]
[BlackElo "2307"]
[Annotator "NA"]
[PlyCount "119"]
[EventDate "2019.11.19"]
[EventType "swiss"]
[EventCountry "RUS"]
[SourceTitle "playchess.com"]
[Source "ChessBase"]
[SourceQuality "1"]
[TimeControl "5400+30"]

1. d4 {[%emt 0:01:16]} Nf6 {[%emt 0:00:00]} 2. c4 {[%emt 0:00:10]} g6 {[%emt 0:00:00]} 3. Nc3 {[%emt 0:00:52]} Bg7 {[%emt 0:00:00]} 4. e4 {[%emt 0:00:10]} d6 {[%emt 0:00:00]} 5. Nf3 {[%emt 0:00:35]} O-O {[%emt 0:00:08]} 6. Be2 {[%emt 0:00:09]} Nbd7 {[%emt 0:00:11]} 7. O-O {[%emt 0:01:05]} e5 {[%emt 0:00:13]} 8. Be3 {[%emt 0:00:41]} Qe7 {[%emt 0:00:19]} 9. Qc2 {[%emt 0:03:32]} c6 {[%emt 0:00:16]} 10. Rfe1 {[%emt 0:07:56]} exd4 {[%emt 0:05:39]} 11. Bxd4 {[%emt 0:07:12]} Ne5 {[%emt 0:01:45]} 12. Rad1 {[%emt 0:04:48]} Bg4 {[%emt 0:19:28]} 13. Nd2 {[%emt 0:03:51]} Bxe2 {[%emt 0:09:15]} 14. Rxe2 {[%emt 0:02:28]} Nh5 {[%emt 0:00:47]} 15. g3 {[%emt 0:05:00]} Qg5 {[%emt 0:03:45]} 16. Be3 {[%emt 0:02:25]} Qg4 {[%emt 0:02:18]} 17. Kg2 {[%emt 0:01:47]} Qe6 {[%emt 0:04:31]} 18. f4 {[%emt 0:09:00]} Nd7 {[%emt 0:03:58]} 19. f5 {[%emt 0:07:17]} Qe7 {[%emt 0:04:36]} 20. g4 {[%emt 0:07:16]} Bxc3 {[%emt 0:02:15]} 21. Qxc3 {[%emt 0:04:03]} Nhf6 {[%emt 0:01:58]} 22. Bg5 {[%emt 0:02:16]} Ne5 {[%emt 0:10:31]} 23. h3 {[%emt 0:07:48]} Rfe8 {[%emt 0:06:57]} 24. Rf1 {[%emt 0:03:23]} h6 {[%emt 0:08:16]} 25. Bxh6 {[%emt 0:00:33]} Nh7 {[%emt 0:01:41]} 26. Nf3 {[%emt 0:02:53]} g5 {[%emt 0:04:20]} 27. Nxe5 {[%emt 0:13:58]} Qxe5 {[%emt 0:00:23]} 28. Rd1 {[%emt 0:00:58]} Rad8 {[%emt 0:07:30]} 29. Qxe5 {[%emt 0:00:35]} Rxe5 {[%emt 0:00:14]} 30. Red2 {[%emt 0:00:31]} Rxe4 {[%emt 0:00:55]} 31. Rxd6 {[%emt 0:00:18]} Rde8 {[%emt 0:00:34]} 32. Rd8 {[%emt 0:00:33]} b6 {[%emt 0:02:19]} 33. Rxe8+ {[%emt 0:00:27]} Rxe8 {[%emt 0:00:06]} 34. Rd7 {[%emt 0:00:41]} Nf6 {[%emt 0:00:39]} 35. Rd6 {[%emt 0:00:29]} Ne4 {[%emt 0:00:22]} 36. Rxc6 {[%emt 0:00:21]} Kh7 {[%emt 0:00:07]} 37. h4 {[%emt 0:00:41]} gxh4 {[%emt 0:00:48]} 38. Kh3 {[%emt 0:00:29]} Nf2+ {[%emt 0:00:05]} 39. Kxh4 {[%emt 0:00:25]} Re4 {[%emt 0:00:12]} 40. Bg5 {[%emt 0:00:36]} Nxg4 {[%emt 0:00:44]} 41. Kh3 {[%emt 0:00:30]} Ne5 {[%emt 0:01:18]} 42. Rc7 {[%emt 0:00:28]} Rxc4 {[%emt 0:00:05]} 43. Rxa7 {[%emt 0:00:30]} Kg7 {[%emt 0:00:26]} 44. Bd2 {[%emt 0:00:32]} Nf3 {[%emt 0:00:38]} 45. Bc3+ {[%emt 0:00:21]} Kh6 {[%emt 0:00:03]} 46. Rb7 {[%emt 0:00:39]} Ng5+ {[%emt 0:00:05]} 47. Kg2 {[%emt 0:00:19]} Rg4+ {[%emt 0:00:32]} 48. Kf1 {[%emt 0:00:31]} Rf4+ {[%emt 0:00:26]} 49. Ke2 {[%emt 0:00:09]} Rxf5 {[%emt 0:00:04]} 50. Rxb6+ {[%emt 0:00:07]} Kh5 {[%emt 0:00:04]} 51. a4 {[%emt 0:00:46]} Rf4 {[%emt 0:00:18]} 52. a5 {[%emt 0:00:25]} Re4+ {[%emt 0:00:07]} 53. Kd3 {[%emt 0:00:26]} f5 {[%emt 0:00:03]} 54. Rb5 {[%emt 0:00:52]} Kg4 {[%emt 0:00:12]} 55. a6 {[%emt 0:00:34]} Re6 {[%emt 0:00:12]} 56. a7 {[%emt 0:00:21]} Ra6 {[%emt 0:00:06]} 57. Ra5 {[%emt 0:00:09]} Rxa7 {[%emt 0:00:04]} 58. Rxa7 {[%emt 0:00:05]} f4 {[%emt 0:00:02]} 59. Rg7 {[%emt 0:00:19]} f3 {[%emt 0:00:18]} 60. Bd2 {[%emt 0:00:15]} 1-0

[Event "15th Governor Cup 2019"]
[Site "Khanty-Mansiysk"]
[Date "2019.11.23"]
[Round "7.16"]
[White "Safin, Robert"]
[Black "Yakimova, Mariya"]
[Result "0-1"]
[ECO "A58"]
[WhiteElo "2182"]
[BlackElo "2276"]
[Annotator "NA"]
[PlyCount "118"]
[EventDate "2019.11.19"]
[EventType "swiss"]
[EventCountry "RUS"]
[SourceTitle "playchess.com"]
[Source "ChessBase"]
[SourceQuality "1"]
[TimeControl "5400+30"]

1. d4 {[%emt 0:00:00]} Nf6 {[%emt 0:00:00]} 2. c4 {[%emt 0:00:00]} c5 {[%emt 0:00:00]} 3. d5 {[%emt 0:00:00]} b5 {[%emt 0:00:00]} 4. cxb5 {[%emt 0:00:00]} a6 {[%emt 0:00:00]} 5. bxa6 {[%emt 0:00:19]} e6 {[%emt 0:00:00]} 6. Nc3 {[%emt 0:02:32]} exd5 {[%emt 0:01:20]} 7. Nxd5 {[%emt 0:00:30]} Be7 {[%emt 0:00:06]} 8. Nxe7 {[%emt 0:16:31]} Qxe7 {[%emt 0:00:05]} 9. e3 {[%emt 0:04:13]} O-O {[%emt 0:02:32]} 10. Nf3 {[%emt 0:00:21]} Nxa6 {[%emt 0:01:33]} 11. Bd2 {[%emt 0:01:03]} Bb7 {[%emt 0:05:21]} 12. Be2 {[%emt 0:02:47]} Nc7 {[%emt 0:02:32]} 13. O-O {[%emt 0:00:48]} Ne6 {[%emt 0:02:24]} 14. Bc3 {[%emt 0:01:09]} Ne4 {[%emt 0:03:31]} 15. a4 {[%emt 0:04:50]} d5 {[%emt 0:18:45]} 16. a5 {[%emt 0:03:41]} Rfd8 {[%emt 0:01:27]} 17. a6 {[%emt 0:02:08]} Bc6 {[%emt 0:00:13]} 18. Ne5 {[%emt 0:06:13]} Be8 {[%emt 0:01:11]} 19. Ba5 {[%emt 0:01:12]} Rd6 {[%emt 0:02:41]} 20. Qc2 {[%emt 0:13:42]} f6 {[%emt 0:07:52]} 21. Nc4 {[%emt 0:03:23]} Rdxa6 {[%emt 0:21:10]} 22. Nb6 {[%emt 0:00:23]} Rxa5 {[%emt 0:00:39]} 23. Nxa8 {[%emt 0:03:09]} Qa7 {[%emt 0:00:40]} 24. Rxa5 {[%emt 0:15:24]} Qxa5 {[%emt 0:00:06]} 25. b4 {[%emt 0:00:06]} Qxa8 {[%emt 0:00:18]} 26. f3 {[%emt 0:00:29]} N4g5 {[%emt 0:07:31]} 27. h4 {[%emt 0:02:20]} Nf7 {[%emt 0:00:35]} 28. bxc5 {[%emt 0:00:04]} Qa3 {[%emt 0:00:10]} 29. Bd3 {[%emt 0:00:06]} Ba4 {[%emt 0:04:58]} 30. Bxh7+ {[%emt 0:06:47]} Kh8 {[%emt 0:00:05]} 31. Qd3 {[%emt 0:03:18]} Qxc5 {[%emt 0:00:50]} 32. Ra1 {[%emt 0:00:00]} Ne5 33. Qb1 {[%emt 0:07:13]} Qxe3+ {[%emt 0:02:43]} 34. Kh1 {[%emt 0:00:00]} Qf4 {[%emt 0:01:52]} 35. Bf5 {[%emt 0:00:04]} Qxh4+ {[%emt 0:00:48]} 36. Kg1 {[%emt 0:00:01]} Qd4+ {[%emt 0:01:43]} 37. Kh2 {[%emt 0:00:25]} Nd8 {[%emt 0:02:30]} 38. Kg3 {[%emt 0:01:02]} g6 {[%emt 0:02:08]} 39. Bh3 {[%emt 0:02:45]} Ndf7 {[%emt 0:01:33]} 40. Qc1 {[%emt 0:00:30]} Nd3 {[%emt 0:01:30]} 41. Qd2 {[%emt 0:00:29]} Qxa1 {[%emt 0:00:53]} 42. Qxd3 {[%emt 0:00:03]} Qe5+ {[%emt 0:00:25]} 43. Kf2 {[%emt 0:00:37]} Kg7 {[%emt 0:00:10]} 44. Qa6 {[%emt 0:00:42]} Be8 {[%emt 0:01:36]} 45. Be6 {[%emt 0:00:39]} d4 {[%emt 0:01:34]} 46. Bc4 {[%emt 0:00:29]} Nd6 {[%emt 0:00:59]} 47. Bd3 {[%emt 0:00:31]} Bf7 {[%emt 0:00:28]} 48. g4 {[%emt 0:00:25]} Qd5 {[%emt 0:00:24]} 49. Kg3 {[%emt 0:00:30]} Nc4 {[%emt 0:00:39]} 50. Qa2 {[%emt 0:00:35]} Qd6+ {[%emt 0:00:33]} 51. f4 {[%emt 0:00:14]} Ne5 {[%emt 0:02:23]} 52. Qa6 {[%emt 0:00:04]} Qxa6 {[%emt 0:00:09]} 53. Bxa6 {[%emt 0:00:00]} Bc4 {[%emt 0:00:32]} 54. Bb7 {[%emt 0:00:16]} Nd3 {[%emt 0:00:14]} 55. g5 {[%emt 0:00:26]} f5 {[%emt 0:00:21]} 56. Kf3 {[%emt 0:00:25]} Kf7 {[%emt 0:00:35]} 57. Bc6 {[%emt 0:00:11]} Ke7 {[%emt 0:00:09]} 58. Ba4 {[%emt 0:00:15]} Bd5+ {[%emt 0:01:15]} 59. Kg3 {[%emt 0:00:10]} Nb2 {[%emt 0:00:19]} 0-1